Workbook

Sheet 销售表
A2: =R35 -> 123754664000
B3: 一月 | C3: 二月 | D3: 三月 | E3: 第一季度 | F3: 四月 | G3: 五月 | H3: 六月 | I3: 第二季度 | J3: 七月 | K3: 八月 | L3: 九月 | M3: 第三季度 | N3: 十月 | O3: 十一月 | P3: 十二月 | Q3: 第四季度 | R3: 总计
A4: 中型
A5: 帕萨特 | B5: 340491000 | C5: 259697000 | D5: 384833000 | E5: =SUM(B5:D5) -> 985021000 | F5: 798300000 | G5: 974237000 | H5: 83470000 | I5: =SUM(F5:H5) -> 1856007000 | J5: 90151000 | K5: 94868000 | L5: 955420000 | M5: =SUM(J5:L5) -> 1140439000 | N5: 817056000 | O5: 82067000 | P5: 216727000 | Q5: =SUM(N5:P5) -> 1115850000 | R5: =SUM(Q5,M5,I5,E5) -> 5097317000
A6: 迈腾 | B6: 937033000 | C6: 771692000 | D6: 866755000 | E6: 2575480000 | F6: 620418000 | G6: 496938000 | H6: 40267000 | I6: =SUM(F6:H6) -> 1157623000 | J6: 645726000 | K6: 169666000 | L6: 716347000 | M6: 1531739000 | N6: 173387000 | O6: 319287000 | P6: 395591000 | Q6: 888265000 | R6: =SUM(Q6,M6,I6,E6) -> 6153107000
A7: 小计 | B7: =SUM(B5:B6) -> 1277524000 | C7: 1031389000 | D7: 1251588000 | E7: =SUM(E5:E6) -> 3560501000 | F7: 1418718000 | G7: 1471175000 | H7: 123737000 | I7: =SUM(I5:I6) -> 3013630000 | J7: 735877000 | K7: 264534000 | L7: 1671767000 | M7: =SUM(M5:M6) -> 2672178000 | N7: 990443000 | O7: 401354000 | P7: 612318000 | Q7: =SUM(Q5:Q6) -> 2004115000 | R7: =SUM(R5:R6) -> 11250424000
A9: 中大型
A10: 奥迪A6L | B10: 340491000 | C10: 259697000 | D10: 384833000 | E10: 985021000 | F10: 798300000 | G10: 974237000 | H10: 83470000 | I10: 1856007000 | J10: 90151000 | K10: 94868000 | L10: 955420000 | M10: 1140439000 | N10: 817056000 | O10: 82067000 | P10: 216727000 | Q10: 1115850000 | R10: =SUM(Q10,M10,I10,E10) -> 5097317000
A11: 索纳塔八 | B11: 937033000 | C11: 771692000 | D11: 866755000 | E11: 2575480000 | F11: 620418000 | G11: 496938000 | H11: 40267000 | I11: 1157623000 | J11: 645726000 | K11: 169666000 | L11: 716347000 | M11: 1531739000 | N11: 173387000 | O11: 319287000 | P11: 395591000 | Q11: 888265000 | R11: 6153107000
A12: 宝马5系 | B12: 340491000 | C12: 259697000 | D12: 384833000 | E12: 985021000 | F12: 798300000 | G12: 974237000 | H12: 83470000 | I12: 1856007000 | J12: 90151000 | K12: 94868000 | L12: 955420000 | M12: 1140439000 | N12: 817056000 | O12: 82067000 | P12: 216727000 | Q12: 1115850000 | R12: 5097317000
A13: 奔驰E级 | B13: 937033000 | C13: 771692000 | D13: 866755000 | E13: 2575480000 | F13: 620418000 | G13: 496938000 | H13: 40267000 | I13: 1157623000 | J13: 645726000 | K13: 169666000 | L13: 716347000 | M13: 1531739000 | N13: 173387000 | O13: 319287000 | P13: 395591000 | Q13: 888265000 | R13: 6153107000
A14: 小计 | B14: =SUM(B10:B13) -> 2555048000 | C14: 2062778000 | D14: 2503176000 | E14: =SUM(E10:E13) -> 7121002000 | F14: 2837436000 | G14: 2942350000 | H14: 247474000 | I14: =SUM(I10:I13) -> 6027260000 | J14: 1471754000 | K14: 529068000 | L14: 3343534000 | M14: =SUM(M10:M13) -> 5344356000 | N14: 1980886000 | O14: 802708000 | P14: 1224636000 | Q14: =SUM(Q10:Q13) -> 4008230000 | R14: =SUM(R10:R13) -> 22500848000
A16: SUV
A17: 哈弗H6 | B17: 340491000 | C17: 259697000 | D17: 384833000 | E17: 985021000 | F17: 798300000 | G17: 974237000 | H17: 83470000 | I17: 1856007000 | J17: 90151000 | K17: 94868000 | L17: 955420000 | M17: 1140439000 | N17: 817056000 | O17: 82067000 | P17: 216727000 | Q17: 1115850000 | R17: =SUM(Q17,M17,I17,E17) -> 5097317000
A18: 途观 | B18: 937033000 | C18: 771692000 | D18: 866755000 | E18: 2575480000 | F18: 620418000 | G18: 496938000 | H18: 40267000 | I18: 1157623000 | J18: 645726000 | K18: 169666000 | L18: 716347000 | M18: 1531739000 | N18: 173387000 | O18: 319287000 | P18: 395591000 | Q18: 888265000 | R18: 6153107000
A19: ix35 | B19: 340491000 | C19: 259697000 | D19: 384833000 | E19: 985021000 | F19: 798300000 | G19: 974237000 | H19: 83470000 | I19: 1856007000 | J19: 90151000 | K19: 94868000 | L19: 955420000 | M19: 1140439000 | N19: 817056000 | O19: 82067000 | P19: 216727000 | Q19: 1115850000 | R19: 5097317000
A20: 逍客 | B20: 937033000 | C20: 771692000 | D20: 866755000 | E20: 2575480000 | F20: 620418000 | G20: 496938000 | H20: 40267000 | I20: 1157623000 | J20: 645726000 | K20: 169666000 | L20: 716347000 | M20: 1531739000 | N20: 173387000 | O20: 319287000 | P20: 395591000 | Q20: 888265000 | R20: 6153107000
A21: 哈弗M3 | B21: 340491000 | C21: 259697000 | D21: 384833000 | E21: 985021000 | F21: 798300000 | G21: 974237000 | H21: 83470000 | I21: 1856007000 | J21: 90151000 | K21: 94868000 | L21: 955420000 | M21: 1140439000 | N21: 817056000 | O21: 82067000 | P21: 216727000 | Q21: 1115850000 | R21: 5097317000
A22: 翼虎 | B22: 937033000 | C22: 771692000 | D22: 866755000 | E22: 2575480000 | F22: 620418000 | G22: 496938000 | H22: 40267000 | I22: 1157623000 | J22: 645726000 | K22: 169666000 | L22: 716347000 | M22: 1531739000 | N22: 173387000 | O22: 319287000 | P22: 395591000 | Q22: 888265000 | R22: 6153107000
A23: 比亚迪S6 | B23: 340491000 | C23: 259697000 | D23: 384833000 | E23: 985021000 | F23: 798300000 | G23: 974237000 | H23: 83470000 | I23: 1856007000 | J23: 90151000 | K23: 94868000 | L23: 955420000 | M23: 1140439000 | N23: 817056000 | O23: 82067000 | P23: 216727000 | Q23: 1115850000 | R23: 5097317000
A24: 奥迪Q5 | B24: 937033000 | C24: 771692000 | D24: 866755000 | E24: 2575480000 | F24: 620418000 | G24: 496938000 | H24: 40267000 | I24: 1157623000 | J24: 645726000 | K24: 169666000 | L24: 716347000 | M24: 1531739000 | N24: 173387000 | O24: 319287000 | P24: 395591000 | Q24: 888265000 | R24: 6153107000
A25: 汉兰达 | B25: 340491000 | C25: 259697000 | D25: 384833000 | E25: 985021000 | F25: 798300000 | G25: 974237000 | H25: 83470000 | I25: 1856007000 | J25: 90151000 | K25: 94868000 | L25: 955420000 | M25: 1140439000 | N25: 817056000 | O25: 82067000 | P25: 216727000 | Q25: 1115850000 | R25: 5097317000
A26: CS35 | B26: 937033000 | C26: 771692000 | D26: 866755000 | E26: 2575480000 | F26: 620418000 | G26: 496938000 | H26: 40267000 | I26: 1157623000 | J26: 645726000 | K26: 169666000 | L26: 716347000 | M26: 1531739000 | N26: 173387000 | O26: 319287000 | P26: 395591000 | Q26: 888265000 | R26: 6153107000
A27: 翼搏 | B27: 340491000 | C27: 259697000 | D27: 384833000 | E27: 985021000 | F27: 798300000 | G27: 974237000 | H27: 83470000 | I27: 1856007000 | J27: 90151000 | K27: 94868000 | L27: 955420000 | M27: 1140439000 | N27: 817056000 | O27: 82067000 | P27: 216727000 | Q27: 1115850000 | R27: 5097317000
A28: 智跑 | B28: 937033000 | C28: 771692000 | D28: 866755000 | E28: 2575480000 | F28: 620418000 | G28: 496938000 | H28: 40267000 | I28: 1157623000 | J28: 645726000 | K28: 169666000 | L28: 716347000 | M28: 1531739000 | N28: 173387000 | O28: 319287000 | P28: 395591000 | Q28: 888265000 | R28: 6153107000
A29: 新胜达-进口 | B29: 340491000 | C29: 259697000 | D29: 384833000 | E29: 985021000 | F29: 798300000 | G29: 974237000 | H29: 83470000 | I29: 1856007000 | J29: 90151000 | K29: 94868000 | L29: 955420000 | M29: 1140439000 | N29: 817056000 | O29: 82067000 | P29: 216727000 | Q29: 1115850000 | R29: 5097317000
A30: 奔腾X80 | B30: 937033000 | C30: 771692000 | D30: 866755000 | E30: 2575480000 | F30: 620418000 | G30: 496938000 | H30: 40267000 | I30: 1157623000 | J30: 645726000 | K30: 169666000 | L30: 716347000 | M30: 1531739000 | N30: 173387000 | O30: 319287000 | P30: 395591000 | Q30: 888265000 | R30: 6153107000
A31: 昂科拉 | B31: 340491000 | C31: 259697000 | D31: 384833000 | E31: 985021000 | F31: 798300000 | G31: 974237000 | H31: 83470000 | I31: 1856007000 | J31: 90151000 | K31: 94868000 | L31: 955420000 | M31: 1140439000 | N31: 817056000 | O31: 82067000 | P31: 216727000 | Q31: 1115850000 | R31: 5097317000
A32: 瑞虎 | B32: 937033000 | C32: 771692000 | D32: 866755000 | E32: 2575480000 | F32: 620418000 | G32: 496938000 | H32: 40267000 | I32: 1157623000 | J32: 645726000 | K32: 169666000 | L32: 716347000 | M32: 1531739000 | N32: 173387000 | O32: 319287000 | P32: 395591000 | Q32: 888265000 | R32: 6153107000
A33: 小计 | B33: =SUM(B17:B32) -> 10220192000 | C33: 8251112000 | D33: 10012704000 | E33: =SUM(E17:E32) -> 28484008000 | F33: 11349744000 | G33: 11769400000 | H33: 989896000 | I33: =SUM(I17:I32) -> 24109040000 | J33: 5887016000 | K33: 2116272000 | L33: 13374136000 | M33: =SUM(M17:M32) -> 21377424000 | N33: 7923544000 | O33: 3210832000 | P33: 4898544000 | Q33: =SUM(Q17:Q32) -> 16032920000 | R33: =SUM(R17:R32) -> 90003392000
A35: 总计 | B35: =B7+B14+B33 -> 14052764000 | C35: 11345279000 | D35: 13767468000 | E35: 39165511000 | F35: 15605898000 | G35: 16182925000 | H35: 1361107000 | I35: 33149930000 | J35: 8094647000 | K35: 2909874000 | L35: 18389437000 | M35: 29393958000 | N35: 10894873000 | O35: 4414894000 | P35: 6735498000 | Q35: 22045265000 | R35: 123754664000

Sheet 销售图
A1: 2014年第一季度销售表
A3: 地区 | B3: 一月 | C3: 二月 | D3: 三月 | E3: 四月 | F3: 五月 | G3: 六月 | H3: 小计
A4: 华北 | B4: 1200 | C4: 1131 | D4: 1014.6 | E4: 838 | F4: 1339 | G4: 458 | H4: =SUM(B4:G4) -> 5980.6
A5: 东北 | B5: 521 | C5: 1116 | D5: 372.3 | E5: 1798 | F5: 416 | G5: 1216 | H5: 5439.3
A6: 华东 | B6: 1000 | C6: 1354 | D6: 991.6 | E6: 1882 | F6: 896 | G6: 916 | H6: 7039.6
A7: 中南 | B7: 1500 | C7: 894 | D7: 1091.1 | E7: 1035 | F7: 1683 | G7: 699 | H7: 6902.1
A8: 西南 | B8: 810 | C8: 1268 | D8: 822.1 | E8: 1844 | F8: 990 | G8: 1857 | H8: 7591.1
A9: 西北 | B9: 564 | C9: 986 | D9: 1350.1 | E9: 1149 | F9: 903 | G9: 722 | H9: 5674.1
A10: 总计 | B10: =SUBTOTAL(109,B4:B9) -> 5595 | C10: 6749 | D10: 5641.8 | E10: 8546 | F10: 6227 | G10: 5868 | H10: 38626.8

Sheet 副表
A1: 2013款奥迪A4L | C1: 销售提成金
A2: 30TFSI手动舒适型 | B2: 27.28 | C2: =B2*0.02 -> 0.5456 | F2: 月份 | G2: 销量 | H2: 售价 | I2: 金额
A3: 30TFSI自动舒适型 | B3: 29.1 | C3: 0.582 | F3: 1 | G3: 14 | H3: 27.28 | I3: =G3*H3 -> 381.92
A4: 35TFSI自动标准型 | B4: 30.98 | C4: 0.6196 | F4: 2 | G4: 18 | H4: 29.1 | I4: 523.8
A5: 35TFSI自动舒适型 | B5: 32.99 | C5: 0.6598 | F5: 3 | G5: 22 | H5: 30.98 | I5: 681.56
A6: 40TFSI quattro 个性运动型 | B6: 34.9 | C6: 0.698 | F6: 4 | G6: 8 | H6: 32.99 | I6: 263.92
A7: 35TFSI自动技术型 | B7: 36.98 | C7: 0.7396 | F7: 5 | G7: 17 | H7: 34.9 | I7: 593.3
A8: 35TFSI自动豪华型 | B8: 39.9 | C8: 0.798 | F8: 6 | G8: 23 | H8: 36.98 | I8: 850.54
A9: 40TFSI quattro 运动型 | B9: 46.96 | C9: 0.9392 | F9: 7 | G9: 15 | H9: 39.9 | I9: 598.5
B10: 总计 | C10: =SUM(C2:C9) -> 5.5818 | F10: 8 | G10: 21 | H10: 46.96 | I10: 986.16
F11: 9 | G11: 22 | H11: 27.28 | I11: 600.16
F12: 10 | G12: 22 | H12: 29.1 | I12: 640.2
F13: 11 | G13: 16 | H13: 30.98 | I13: 495.68
F14: 12 | G14: 24 | H14: 32.99 | I14: 791.76
H15: 总计 | I15: =SUM(I3:I14) -> 7407.5
C16: 综合油耗(L/100km) | D16: 最高车速(km/h)
A18: 30TFSI手动舒适型 | C18: 6.5 | D18: 220
A19: 30TFSI自动舒适型 | C19: 6.5 | D19: 218
A21: 35TFSI自动标准型 | C21: 6.6 | D21: 230
A22: 35TFSI自动舒适型 | C22: 6.6 | D22: 230

Sheet Sheet1

Sheet Sheet2

Sheet Sheet3
